[Event "Elitserien 2019/2020, round 7-9"]
[Site "Elite stadshotellet, Kungsgatan 6, Vaxjo, Sweden"]
[Date "2020.10.17"]
[Round "2.10"]
[White "Sjodahl, Pontus"]
[Black "Lindgren, Philip"]
[Result "1/2-1/2"]
[TimeControl "90 minutes for 40 moves + 30 minutes for the rest of the game + 30 seconds per move from move one."]
[WhiteTitle "IM"]
[BlackTitle "IM"]
[WhiteFideId "1700537"]
[BlackFideId "1713230"]
[WhiteElo "2430"]
[BlackElo "2356"]

1. d4 {[%clk 01:30:55]} {[%emt 00:00:04]} Nf6 {[%clk 01:30:38]} {[%emt
00:00:22]} 2. c4 {[%clk 01:31:14]} {[%emt 00:00:11]} e6 {[%clk 01:30:51]}
{[%emt 00:00:18]} 3. Nf3 {[%clk 01:31:26]} {[%emt 00:00:18]} d5 {[%clk
01:30:29]} {[%emt 00:00:52]} 4. Bg5 {[%clk 01:25:44]} {[%emt 00:06:12]} h6
{[%clk 01:27:46]} {[%emt 00:03:13]} 5. Bxf6 {[%clk 01:18:58]} {[%emt 00:07:15]}
Qxf6 {[%clk 01:27:51]} {[%emt 00:00:25]} 6. Nc3 {[%clk 01:15:35]} {[%emt
00:03:53]} c6 {[%clk 01:25:55]} {[%emt 00:02:26]} 7. e3 {[%clk 01:15:09]}
{[%emt 00:00:56]} Nd7 {[%clk 01:25:10]} {[%emt 00:01:15]} 8. Bd3 {[%clk
01:14:42]} {[%emt 00:00:57]} dxc4 {[%clk 01:17:31]} {[%emt 00:08:09]} 9. Bxc4
{[%clk 01:15:05]} {[%emt 00:00:07]} Bd6 {[%clk 01:17:26]} {[%emt 00:00:35]} 10.
O-O {[%clk 01:14:07]} {[%emt 00:01:27]} O-O {[%clk 01:15:57]} {[%emt 00:01:59]}
11. Ne4 {[%clk 00:54:08]} {[%emt 00:20:29]} Qe7 {[%clk 01:15:55]} {[%emt
00:00:33]} 12. Nxd6 {[%clk 00:54:11]} {[%emt 00:00:27]} Qxd6 {[%clk 01:16:18]}
{[%emt 00:00:06]} 13. Rc1 {[%clk 00:54:19]} {[%emt 00:00:21]} Qe7 {[%clk
01:12:51]} {[%emt 00:03:58]} 14. Rc3 {[%clk 00:37:33]} {[%emt 00:17:15]} Rd8
{[%clk 01:04:37]} {[%emt 00:08:44]} 15. Qe2 {[%clk 00:31:44]} {[%emt 00:06:19]}
e5 {[%clk 00:58:31]} {[%emt 00:06:37]} 16. dxe5 {[%clk 00:30:03]} {[%emt
00:02:11]} Nxe5 {[%clk 00:58:26]} {[%emt 00:00:35]} 17. Nxe5 {[%clk 00:29:20]}
{[%emt 00:01:13]} Qxe5 {[%clk 00:58:48]} {[%emt 00:00:07]} 18. Rd1 {[%clk
00:20:28]} {[%emt 00:09:23]} Bf5 {[%clk 00:50:34]} {[%emt 00:08:45]} 19. Rcc1
{[%clk 00:16:44]} {[%emt 00:04:12]} Be4 {[%clk 00:45:07]} {[%emt 00:05:59]} 20.
a3 {[%clk 00:11:56]} {[%emt 00:05:17]} Qg5 {[%clk 00:39:29]} {[%emt 00:06:09]}
21. f3 {[%clk 00:11:46]} {[%emt 00:00:39]} Bg6 {[%clk 00:39:34]} {[%emt
00:00:26]} 22. Qf2 {[%clk 00:07:42]} {[%emt 00:04:31]} Re8 {[%clk 00:34:06]}
{[%emt 00:06:00]} 23. e4 {[%clk 00:07:39]} {[%emt 00:00:32]} Qf4 {[%clk
00:25:19]} {[%emt 00:09:17]} 24. Qg3 {[%clk 00:06:34]} {[%emt 00:01:36]} Qxg3
{[%clk 00:15:52]} {[%emt 00:09:57]} 25. hxg3 {[%clk 00:06:55]} {[%emt
00:00:08]} Rad8 {[%clk 00:16:17]} {[%emt 00:00:04]} 26. Kf2 {[%clk 00:06:55]}
{[%emt 00:00:30]} Kf8 {[%clk 00:15:39]} {[%emt 00:01:08]} 27. g4 {[%clk
00:06:38]} {[%emt 00:00:47]} f6 {[%clk 00:14:03]} {[%emt 00:02:06]} 28. Ke3
{[%clk 00:06:52]} {[%emt 00:00:15]} Ke7 {[%clk 00:13:19]} {[%emt 00:01:14]} 29.
f4 {[%clk 00:05:13]} {[%emt 00:02:10]} Rxd1 {[%clk 00:03:07]} {[%emt 00:10:42]}
30. Rxd1 {[%clk 00:05:38]} {[%emt 00:00:05]} Rd8 {[%clk 00:03:23]} {[%emt
00:00:14]} 31. Rxd8 {[%clk 00:04:13]} {[%emt 00:01:56]} Kxd8 {[%clk 00:03:47]}
{[%emt 00:00:06]} 32. b4 {[%clk 00:04:11]} {[%emt 00:00:32]} Ke7 {[%clk
00:03:46]} {[%emt 00:00:31]} 33. Kd4 {[%clk 00:04:23]} {[%emt 00:00:17]} Be8
{[%clk 00:03:03]} {[%emt 00:01:14]} 34. Be2 {[%clk 00:02:23]} {[%emt 00:02:29]}
Bd7 {[%clk 00:02:51]} {[%emt 00:00:42]} 35. Bd1 {[%clk 00:02:32]} {[%emt
00:00:22]} Be6 {[%clk 00:02:09]} {[%emt 00:01:12]} 36. Be2 {[%clk 00:02:41]}
{[%emt 00:00:21]} Bb3 {[%clk 00:01:31]} {[%emt 00:01:07]} 37. Bf3 {[%clk
00:02:47]} {[%emt 00:00:24]} Bf7 {[%clk 00:01:13]} {[%emt 00:00:48]} 38. Bd1
{[%clk 00:03:06]} {[%emt 00:00:11]} Kd6 {[%clk 00:00:54]} {[%emt 00:00:49]} 39.
Be2 {[%clk 00:02:53]} {[%emt 00:00:43]} Bb3 {[%clk 00:00:46]} {[%emt 00:00:38]}
40. Bf3 {[%clk 00:03:03]} {[%emt 00:00:21]} Ba2 {[%clk 00:00:43]} {[%emt
00:00:33]} 41. Be2 {[%clk 00:02:21]} {[%emt 00:01:12]} Be6 {[%clk 00:23:24]}
{[%emt 00:07:47]} 42. Bd1 {[%clk 00:30:56]} {[%emt 00:01:55]} Bd7 {[%clk
00:22:54]} {[%emt 00:01:00]} 43. Be2 {[%clk 00:29:27]} {[%emt 00:02:00]} Be6
{[%clk 00:20:58]} {[%emt 00:02:26]} 44. Bd1 {[%clk 00:29:30]} {[%emt 00:00:27]}
Bd7 {[%clk 00:21:12]} {[%emt 00:00:16]} 45. Be2 {[%emt 00:00:09]} Kd5+ {[%emt
00:00:18]} 1/2-1/2

[Event "Elitserien 2019/2020, round 7-9"]
[Site "Elite stadshotellet, Kungsgatan 6, Vaxjo, Sweden"]
[Date "2020.10.17"]
[Round "2.11"]
[White "Penalver, Osmani"]
[Black "Pantzar, Milton"]
[Result "1-0"]
[TimeControl "90 minutes for 40 moves + 30 minutes for the rest of the game + 30 seconds per move from move one."]
[BlackTitle "IM"]
[WhiteFideId "1704516"]
[BlackFideId "1721003"]
[WhiteElo "2250"]
[BlackElo "2406"]

1. d4 {[%clk 01:30:56]} {[%emt 00:00:03]} d5 {[%clk 01:30:51]} {[%emt
00:00:09]} 2. c4 {[%clk 01:31:13]} {[%emt 00:00:14]} e6 {[%clk 01:31:15]}
{[%emt 00:00:06]} 3. Nc3 {[%clk 01:31:28]} {[%emt 00:00:15]} c5 {[%clk
01:31:31]} {[%emt 00:00:14]} 4. cxd5 {[%clk 01:31:46]} {[%emt 00:00:12]} exd5
{[%clk 01:31:54]} {[%emt 00:00:08]} 5. Nf3 {[%clk 01:31:59]} {[%emt 00:00:16]}
Nf6 {[%clk 01:32:14]} {[%emt 00:00:09]} 6. g3 {[%clk 01:32:03]} {[%emt
00:00:26]} Nc6 {[%clk 01:32:27]} {[%emt 00:00:17]} 7. Bg2 {[%clk 01:32:00]}
{[%emt 00:00:32]} cxd4 {[%clk 01:32:37]} {[%emt 00:00:20]} 8. Nxd4 {[%clk
01:32:11]} {[%emt 00:00:20]} Bc5 {[%clk 01:32:59]} {[%emt 00:00:08]} 9. Nxc6
{[%clk 01:30:22]} {[%emt 00:02:19]} bxc6 {[%clk 01:33:22]} {[%emt 00:00:08]} 10.
O-O {[%clk 01:30:22]} {[%emt 00:00:29]} O-O {[%clk 01:33:12]} {[%emt 00:00:39]}
11. Qc2 {[%clk 01:29:33]} {[%emt 00:01:19]} Bb6 {[%clk 01:28:44]} {[%emt
00:04:58]} 12. Na4 {[%clk 01:22:28]} {[%emt 00:07:35]} Ba6 {[%clk 01:28:09]}
{[%emt 00:01:05]} 13. Nxb6 {[%clk 01:16:15]} {[%emt 00:06:43]} Qxb6 {[%clk
01:27:20]} {[%emt 00:01:19]} 14. Rd1 {[%clk 01:07:47]} {[%emt 00:08:57]} Rfe8
{[%clk 01:21:36]} {[%emt 00:06:15]} 15. Bf3 {[%clk 01:04:59]} {[%emt 00:03:18]}
Re6 {[%clk 00:56:44]} {[%emt 00:25:22]} 16. Be3 {[%clk 00:59:17]} {[%emt
00:06:12]} Qb7 {[%clk 00:54:48]} {[%emt 00:02:25]} 17. Bd4 {[%clk 00:56:16]}
{[%emt 00:03:32]} Rae8 {[%clk 00:46:27]} {[%emt 00:08:51]} 18. e3 {[%clk
00:55:02]} {[%emt 00:01:43]} Ne4 {[%clk 00:43:24]} {[%emt 00:03:33]} 19. Rac1
{[%clk 00:52:55]} {[%emt 00:02:36]} Qe7 {[%clk 00:37:11]} {[%emt 00:06:44]} 20.
Bxe4 {[%clk 00:44:59]} {[%emt 00:08:27]} dxe4 {[%clk 00:34:33]} {[%emt
00:03:08]} 21. Qc5 {[%clk 00:44:58]} {[%emt 00:00:30]} Qb7 {[%clk 00:31:59]}
{[%emt 00:03:04]} 22. Qxa7 {[%clk 00:43:53]} {[%emt 00:01:36]} Qc8 {[%clk
00:31:06]} {[%emt 00:01:22]} 23. Bb6 {[%clk 00:38:40]} {[%emt 00:05:43]} Bd3
{[%clk 00:23:11]} {[%emt 00:08:25]} 24. Qc7 {[%clk 00:38:49]} {[%emt 00:00:22]}
Qa6 {[%clk 00:18:52]} {[%emt 00:04:49]} 25. Bd4 {[%clk 00:19:45]} {[%emt
00:19:33]} Be2 {[%clk 00:14:13]} {[%emt 00:05:09]} 26. Rd2 {[%clk 00:16:59]}
{[%emt 00:03:16]} Bf3 {[%clk 00:14:25]} {[%emt 00:00:18]} 27. Qa7 {[%clk
00:16:17]} {[%emt 00:01:12]} Qc8 {[%clk 00:12:39]} {[%emt 00:02:16]} 28. Rdc2
{[%clk 00:07:11]} {[%emt 00:09:36]} R6e7 {[%clk 00:07:58]} {[%emt 00:05:10]} 29.
Qxe7 {[%clk 00:06:00]} {[%emt 00:01:42]} Rxe7 {[%clk 00:08:25]} {[%emt
00:00:02]} 30. Rxc6 {[%clk 00:06:21]} {[%emt 00:00:09]} Qd7 {[%clk 00:08:46]}
{[%emt 00:00:09]} 31. Rd6 {[%clk 00:01:53]} {[%emt 00:04:58]} Qe8 {[%clk
00:06:19]} {[%emt 00:02:57]} 32. Bb6 {[%clk 00:01:30]} {[%emt 00:00:53]} Rd7
{[%clk 00:01:09]} {[%emt 00:05:40]} 33. Rdc6 {[%clk 00:01:50]} {[%emt
00:00:11]} Rd8 {[%clk 00:01:07]} {[%emt 00:00:32]} 34. Bxd8 {[%clk 00:01:36]}
{[%emt 00:00:44]} Qd7 {[%clk 00:01:19]} {[%emt 00:00:18]} 35. Bb6 {[%clk
00:00:59]} {[%emt 00:01:07]} h5 {[%clk 00:01:25]} {[%emt 00:00:22]} 36. Kf1
{[%clk 00:01:21]} {[%emt 00:00:08]} Qh3+ {[%clk 00:01:24]} {[%emt 00:00:31]} 37.
Ke1 {[%clk 00:01:47]} {[%emt 00:00:04]} Qxh2 {[%clk 00:01:49]} {[%emt
00:00:06]} 38. a4 {[%clk 00:01:32]} {[%emt 00:00:45]} Qg1+ {[%clk 00:01:26]}
{[%emt 00:00:52]} 39. Kd2 {[%clk 00:01:58]} {[%emt 00:00:04]} Qxf2+ {[%clk
00:01:53]} {[%emt 00:00:03]} 40. Kc3 {[%clk 00:02:23]} {[%emt 00:00:06]} Qxg3
{[%clk 00:01:29]} {[%emt 00:00:53]} 41. a5 {[%clk 00:02:38]} {[%emt 00:00:15]}
Qe5+ {[%clk 00:26:08]} {[%emt 00:05:51]} 42. Kb3 {[%clk 00:28:49]} {[%emt
00:04:19]} Qb5+ {[%clk 00:24:04]} {[%emt 00:02:34]} 43. Ka3 {[%clk 00:28:56]}
{[%emt 00:00:24]} h4 {[%clk 00:23:40]} {[%emt 00:00:55]} 44. R1c5 {[%clk
00:26:39]} {[%emt 00:02:47]} Qd3+ {[%clk 00:21:06]} {[%emt 00:03:03]} 45. Rc3
{[%clk 00:27:00]} {[%emt 00:00:09]} Qd1 {[%clk 00:17:44]} {[%emt 00:03:52]} 46.
Rc1 {[%clk 00:27:14]} {[%emt 00:00:16]} Qd7 {[%clk 00:16:47]} {[%emt 00:01:27]}
47. Bd4 {[%clk 00:25:44]} {[%emt 00:02:01]} Qe7+ {[%clk 00:10:03]} {[%emt
00:07:13]} 48. b4 {[%clk 00:25:54]} {[%emt 00:00:20]} Be2 {[%clk 00:08:20]}
{[%emt 00:02:14]} 49. a6 {[%clk 00:24:51]} {[%emt 00:01:32]} Bxa6 {[%clk
00:08:44]} {[%emt 00:00:06]} 50. Rxa6 {[%clk 00:25:17]} {[%emt 00:00:04]} h3
{[%clk 00:08:52]} {[%emt 00:00:22]} 51. Rg1 {[%clk 00:24:56]} {[%emt 00:00:51]}
f6 {[%clk 00:08:29]} {[%emt 00:00:53]} 52. Ra8+ {[%clk 00:23:51]} {[%emt
00:01:35]} Kh7 {[%clk 00:08:50]} {[%emt 00:00:09]} 53. Ra7 {[%clk 00:24:15]}
{[%emt 00:00:06]} h2 {[%clk 00:08:47]} {[%emt 00:00:34]} 54. Rh1 {[%clk
00:17:26]} {[%emt 00:07:19]} Qd6 {[%clk 00:09:06]} {[%emt 00:00:11]} 55. Kb3
{[%clk 00:17:20]} {[%emt 00:00:35]} Kg8 {[%clk 00:05:05]} {[%emt 00:04:31]} 56.
b5 {[%clk 00:15:50]} {[%emt 00:02:01]} Qd5+ {[%clk 00:03:18]} {[%emt 00:02:17]}
57. Kb4 {[%clk 00:15:42]} {[%emt 00:00:38]} Qd6+ {[%clk 00:03:36]} {[%emt
00:00:11]} 58. Kc3 {[%clk 00:12:55]} {[%emt 00:03:17]} g5 {[%clk 00:03:16]}
{[%emt 00:00:49]} 59. b6 {[%clk 00:11:03]} {[%emt 00:02:23]} Qc6+ {[%clk
00:02:35]} {[%emt 00:01:11]} 60. Kd2 {[%clk 00:09:23]} {[%emt 00:02:10]} Qb5
{[%clk 00:02:57]} {[%emt 00:00:09]} 61. b7 {[%clk 00:07:17]} {[%emt 00:02:35]}
Qd3+ {[%clk 00:02:10]} {[%emt 00:01:17]} 62. Ke1 {[%clk 00:07:41]} {[%emt
00:00:06]} Qb1+ {[%clk 00:02:35]} {[%emt 00:00:05]} 63. Kf2 {[%clk 00:08:08]}
{[%emt 00:00:04]} Qc2+ {[%clk 00:02:58]} {[%emt 00:00:07]} 64. Kg3 {[%clk
00:07:42]} {[%emt 00:00:57]} Qc7+ {[%clk 00:03:24]} {[%emt 00:00:04]} 65. Kh3
{[%clk 00:07:28]} {[%emt 00:00:44]} g4+ {[%clk 00:02:21]} {[%emt 00:01:33]} 66.
Kxg4 {[%clk 00:07:54]} {[%emt 00:00:05]} f5+ {[%clk 00:00:49]} {[%emt
00:02:02]} 67. Kxf5 {[%clk 00:07:07]} {[%emt 00:01:16]} Qf7+ {[%clk 00:00:44]}
{[%emt 00:00:35]} 68. Kxe4 {[%clk 00:06:15]} {[%emt 00:01:21]} Qe6+ {[%clk
00:01:01]} {[%emt 00:00:13]} 69. Kf4 {[%clk 00:05:09]} {[%emt 00:01:36]} Qf7+
{[%clk 00:00:59]} {[%emt 00:00:32]} 70. Kg3 {[%clk 00:05:21]} {[%emt 00:00:18]}
Qc7+ {[%clk 00:00:55]} {[%emt 00:00:34]} 71. Kh3 {[%clk 00:05:25]} {[%emt
00:00:27]} Qh7+ {[%clk 00:01:18]} {[%emt 00:00:07]} 72. Kg3 {[%clk 00:05:07]}
{[%emt 00:00:47]} Qc7+ {[%clk 00:01:41]} {[%emt 00:00:07]} 73. Kf3 {[%clk
00:05:13]} {[%emt 00:00:23]} Qf7+ {[%clk 00:01:42]} {[%emt 00:00:29]} 74. Kg2
{[%clk 00:05:15]} {[%emt 00:00:29]} Qg6+ {[%clk 00:01:33]} {[%emt 00:00:40]} 75.
Kxh2 {[%clk 00:05:39]} {[%emt 00:00:05]} Qh5+ {[%clk 00:00:52]} {[%emt
00:01:11]} 76. Kg3 {[%clk 00:05:45]} {[%emt 00:00:24]} Qg6+ {[%clk 00:00:48]}
{[%emt 00:00:33]} 77. Kf4 {[%clk 00:05:44]} {[%emt 00:00:31]} Qf7+ {[%clk
00:00:40]} {[%emt 00:00:38]} 78. Kg5 {[%clk 00:04:58]} {[%emt 00:01:16]} Qd5+
{[%clk 00:00:50]} {[%emt 00:00:21]} 79. Kf6 {[%clk 00:04:20]} {[%emt 00:01:08]}
Qd6+ {[%clk 00:00:58]} {[%emt 00:00:22]} 80. Kf5 {[%clk 00:04:15]} {[%emt
00:00:35]} Qd7+ {[%clk 00:01:09]} {[%emt 00:00:19]} 81. Ke4 {[%clk 00:04:01]}
{[%emt 00:00:43]} Qc6+ {[%clk 00:00:54]} {[%emt 00:00:45]} 82. Kd3 {[%clk
00:04:05]} {[%emt 00:00:26]} Qb5+ {[%clk 00:01:12]} {[%emt 00:00:13]} 83. Kc3
{[%clk 00:04:23]} {[%emt 00:00:12]} Qc6+ {[%clk 00:01:31]} {[%emt 00:00:10]} 84.
Kb4 {[%clk 00:04:34]} {[%emt 00:00:19]} Qd6+ {[%clk 00:01:54]} {[%emt
00:00:07]} 85. Kb3 {[%clk 00:03:10]} {[%emt 00:01:54]} Qd5+ {[%clk 00:02:02]}
{[%emt 00:00:22]} 86. Ka3 {[%clk 00:02:56]} {[%emt 00:00:44]} Qd6+ {[%clk
00:02:15]} {[%emt 00:00:17]} 87. Kb2 {[%clk 00:03:18]} {[%emt 00:00:08]} Qb4+
{[%clk 00:02:33]} {[%emt 00:00:12]} 88. Ka1 {[%clk 00:03:42]} {[%emt 00:00:06]}
1-0

[Event "Elitserien 2019/2020, round 7-9"]
[Site "Elite stadshotellet, Kungsgatan 6, Vaxjo, Sweden"]
[Date "2020.10.17"]
[Round "2.12"]
[White "Akesson, Ralf"]
[Black "Jepson, Christian"]
[Result "1/2-1/2"]
[TimeControl "90 minutes for 40 moves + 30 minutes for the rest of the game + 30 seconds per move from move one."]
[WhiteTitle "GM"]
[BlackTitle "IM"]
[WhiteFideId "1700120"]
[BlackFideId "1701185"]
[WhiteElo "2379"]
[BlackElo "2384"]

1. Nf3 {[%clk 01:30:57]} {[%emt 00:00:02]} d6 {[%clk 01:26:55]} {[%emt
00:04:06]} 2. d4 {[%clk 01:30:55]} {[%emt 00:00:31]} Nf6 {[%clk 01:27:18]}
{[%emt 00:00:07]} 3. c4 {[%clk 01:30:44]} {[%emt 00:00:41]} g6 {[%clk
01:27:31]} {[%emt 00:00:17]} 4. Nc3 {[%clk 01:30:57]} {[%emt 00:00:17]} Bf5
{[%clk 01:27:54]} {[%emt 00:00:07]} 5. Qb3 {[%clk 01:20:39]} {[%emt 00:10:48]}
b6 {[%clk 01:25:56]} {[%emt 00:02:29]} 6. g3 {[%clk 01:16:48]} {[%emt
00:04:21]} Bg7 {[%clk 01:09:06]} {[%emt 00:17:20]} 7. Bg2 {[%clk 01:16:50]}
{[%emt 00:00:27]} Nc6 {[%clk 01:09:22]} {[%emt 00:00:14]} 8. O-O {[%clk
01:02:24]} {[%emt 00:14:57]} O-O {[%clk 01:07:25]} {[%emt 00:02:26]} 9. Qd1
{[%clk 00:55:50]} {[%emt 00:07:04]} Ne4 {[%clk 01:04:41]} {[%emt 00:03:14]} 10.
Nxe4 {[%clk 00:49:12]} {[%emt 00:07:08]} Bxe4 {[%clk 01:02:29]} {[%emt
00:02:42]} 11. Be3 {[%clk 00:49:23]} {[%emt 00:00:19]} Nb4 {[%clk 00:54:37]}
{[%emt 00:08:22]} 12. Ne1 {[%clk 00:44:19]} {[%emt 00:05:34]} Bxg2 {[%clk
00:54:35]} {[%emt 00:00:32]} 13. Kxg2 {[%clk 00:41:47]} {[%emt 00:03:03]} c5
{[%clk 00:53:59]} {[%emt 00:01:06]} 14. Nf3 {[%clk 00:38:15]} {[%emt 00:04:02]}
Rc8 {[%clk 00:33:07]} {[%emt 00:21:22]} 15. b3 {[%clk 00:28:49]} {[%emt
00:09:55]} d5 {[%clk 00:29:47]} {[%emt 00:03:50]} 16. a3 {[%clk 00:27:52]}
{[%emt 00:01:27]} Nc6 {[%clk 00:28:44]} {[%emt 00:01:33]} 17. dxc5 {[%clk
00:17:10]} {[%emt 00:11:12]} d4 {[%clk 00:15:44]} {[%emt 00:13:31]} 18. Bd2
{[%clk 00:15:54]} {[%emt 00:01:46]} bxc5 {[%clk 00:15:54]} {[%emt 00:00:21]} 19.
b4 {[%clk 00:15:53]} {[%emt 00:00:31]} e5 {[%clk 00:14:36]} {[%emt 00:01:48]}
20. Ng5 {[%clk 00:12:05]} {[%emt 00:04:18]} Qe7 {[%clk 00:10:59]} {[%emt
00:04:07]} 21. b5 {[%clk 00:08:48]} {[%emt 00:03:47]} Nd8 {[%clk 00:07:53]}
{[%emt 00:03:36]} 22. e4 {[%clk 00:09:05]} {[%emt 00:00:13]} Qb7 {[%clk
00:05:39]} {[%emt 00:02:44]} 23. f3 {[%clk 00:08:56]} {[%emt 00:00:39]} f6
{[%clk 00:04:58]} {[%emt 00:01:11]} 24. Nh3 {[%clk 00:09:20]} {[%emt 00:00:05]}
Nf7 {[%clk 00:05:22]} {[%emt 00:00:06]} 25. Nf2 {[%clk 00:09:12]} {[%emt
00:00:38]} Nd6 {[%clk 00:05:44]} {[%emt 00:00:08]} 26. Qc2 {[%clk 00:08:33]}
{[%emt 00:01:09]} f5 {[%clk 00:05:32]} {[%emt 00:00:43]} 27. Qd3 {[%clk
00:08:01]} {[%emt 00:01:02]} Rf7 {[%clk 00:04:52]} {[%emt 00:01:10]} 28. a4
{[%clk 00:06:47]} {[%emt 00:01:43]} a6 {[%clk 00:03:18]} {[%emt 00:02:05]} 29.
g4 {[%clk 00:03:37]} {[%emt 00:03:39]} Ra8 {[%clk 00:02:43]} {[%emt 00:01:04]}
30. gxf5 {[%clk 00:02:46]} {[%emt 00:01:21]} gxf5 {[%clk 00:03:11]} 1/2-1/2

[Event "Elitserien 2019/2020, round 7-9"]
[Site "Elite stadshotellet, Kungsgatan 6, Vaxjo, Sweden"]
[Date "2020.10.17"]
[Round "2.13"]
[White "Nylen, Anders"]
[Black "Norberg, Johan"]
[Result "1/2-1/2"]
[TimeControl "90 minutes for 40 moves + 30 minutes for the rest of the game + 30 seconds per move from move one."]
[BlackTitle "CM"]
[WhiteFideId "1701207"]
[BlackFideId "1707965"]
[WhiteElo "2188"]
[BlackElo "2304"]

1. d4 {[%clk 01:30:58]} {[%emt 00:00:01]} d6 {[%clk 01:30:45]} {[%emt
00:00:15]} 2. e4 {[%clk 01:31:18]} {[%emt 00:00:10]} Nf6 {[%clk 01:30:58]}
{[%emt 00:00:17]} 3. f3 {[%clk 01:31:28]} {[%emt 00:00:21]} c5 {[%clk
01:29:59]} {[%emt 00:01:29]} 4. d5 {[%clk 01:31:42]} {[%emt 00:00:15]} g6
{[%clk 01:28:58]} {[%emt 00:01:31]} 5. c4 {[%clk 01:31:57]} {[%emt 00:00:15]}
Bg7 {[%clk 01:29:00]} {[%emt 00:00:28]} 6. Nc3 {[%clk 01:32:19]} {[%emt
00:00:08]} O-O {[%clk 01:28:49]} {[%emt 00:00:41]} 7. Bg5 {[%clk 01:32:39]}
{[%emt 00:00:10]} a6 {[%clk 01:23:40]} {[%emt 00:05:39]} 8. a4 {[%clk
01:32:21]} {[%emt 00:00:47]} e6 {[%clk 01:13:58]} {[%emt 00:10:12]} 9. Qd2
{[%clk 01:32:30]} {[%emt 00:00:21]} exd5 {[%clk 01:12:36]} {[%emt 00:01:53]} 10.
cxd5 {[%clk 01:32:50]} {[%emt 00:00:09]} Re8 {[%clk 01:07:50]} {[%emt
00:05:16]} 11. Nge2 {[%clk 01:31:43]} {[%emt 00:01:36]} Nbd7 {[%clk 01:05:58]}
{[%emt 00:02:23]} 12. Ng3 {[%clk 01:31:15]} {[%emt 00:00:56]} Rb8 {[%clk
01:00:39]} {[%emt 00:05:51]} 13. Be2 {[%clk 01:30:58]} {[%emt 00:00:46]} Qc7
{[%clk 00:59:47]} {[%emt 00:01:23]} 14. O-O {[%clk 01:30:34]} {[%emt 00:00:54]}
c4 {[%clk 00:57:21]} {[%emt 00:02:56]} 15. Rfc1 {[%clk 01:24:51]} {[%emt
00:06:11]} b5 {[%clk 00:54:11]} {[%emt 00:03:42]} 16. axb5 {[%clk 01:24:36]}
{[%emt 00:00:46]} axb5 {[%clk 00:54:39]} {[%emt 00:00:02]} 17. b4 {[%clk
01:24:05]} {[%emt 00:01:00]} cxb3 {[%clk 00:40:20]} {[%emt 00:14:49]} 18. Nxb5
{[%clk 01:23:50]} {[%emt 00:00:45]} Qd8 {[%clk 00:40:35]} {[%emt 00:00:15]} 19.
Rc6 {[%clk 01:14:29]} {[%emt 00:09:50]} Ne5 {[%clk 00:20:59]} {[%emt 00:20:06]}
20. Rxd6 {[%clk 01:05:12]} {[%emt 00:09:47]} Qe7 {[%clk 00:20:50]} {[%emt
00:00:39]} 21. Rb1 {[%clk 00:42:37]} {[%emt 00:23:06]} Bd7 {[%clk 00:14:54]}
{[%emt 00:06:26]} 22. Rxd7 {[%clk 00:36:14]} {[%emt 00:06:53]} Qxd7 {[%clk
00:14:58]} {[%emt 00:00:26]} 23. Rxb3 {[%clk 00:36:08]} {[%emt 00:00:36]} Rec8
{[%clk 00:14:31]} {[%emt 00:00:56]} 24. Nd4 {[%clk 00:31:26]} {[%emt 00:05:12]}
Rxb3 {[%clk 00:13:51]} {[%emt 00:01:10]} 25. Nxb3 {[%clk 00:29:08]} {[%emt
00:02:47]} Qa4 {[%clk 00:13:44]} {[%emt 00:00:37]} 26. Nd4 {[%clk 00:28:32]}
{[%emt 00:01:06]} Nfd7 {[%clk 00:12:27]} {[%emt 00:01:46]} 27. Be3 {[%clk
00:27:21]} {[%emt 00:01:42]} Qa1+ {[%clk 00:10:03]} {[%emt 00:02:55]} 28. Nf1
{[%clk 00:27:02]} {[%emt 00:00:49]} Qb1 {[%clk 00:05:58]} {[%emt 00:04:35]} 29.
Qd1 {[%clk 00:23:19]} {[%emt 00:04:12]} Qxd1 {[%clk 00:02:47]} {[%emt
00:03:41]} 30. Bxd1 {[%clk 00:23:45]} {[%emt 00:00:04]} Rc3 {[%clk 00:03:14]}
{[%emt 00:00:03]} 31. Ne2 {[%clk 00:18:28]} {[%emt 00:05:47]} Ra3 {[%clk
00:03:01]} {[%emt 00:00:43]} 32. Neg3 {[%clk 00:12:43]} {[%emt 00:06:15]} Nc4
{[%clk 00:02:59]} {[%emt 00:00:32]} 33. Bf2 {[%clk 00:12:29]} {[%emt 00:00:45]}
Nde5 {[%clk 00:02:05]} {[%emt 00:01:24]} 34. Be2 {[%clk 00:12:25]} {[%emt
00:00:33]} Nd3 {[%clk 00:02:26]} {[%emt 00:00:09]} 35. Bxd3 {[%clk 00:11:52]}
{[%emt 00:01:04]} Rxd3 {[%clk 00:02:55]} {[%emt 00:00:01]} 36. Bc5 {[%clk
00:11:05]} {[%emt 00:01:16]} Bf8 {[%clk 00:02:47]} {[%emt 00:00:38]} 37. Bxf8
{[%emt 00:01:52]} Kxf8 38. Kf2 {[%clk 00:09:29]} {[%emt 00:00:44]} Ke7 {[%clk
00:03:36]} {[%emt 00:00:11]} 39. Ne2 {[%clk 00:07:51]} {[%emt 00:02:07]} Kd6
{[%clk 00:03:17]} {[%emt 00:00:49]} 40. Nfg3 {[%clk 00:05:29]} {[%emt
00:02:52]} Rd2 {[%clk 00:01:48]} {[%emt 00:02:00]} 41. h4 {[%clk 00:04:16]}
{[%emt 00:01:43]} h5 {[%clk 00:29:49]} {[%emt 00:02:29]} 42. Nf1 {[%clk
00:31:14]} {[%emt 00:03:31]} Ra2 {[%clk 00:28:51]} {[%emt 00:01:28]} 43. Nfg3
{[%clk 00:27:31]} {[%emt 00:04:13]} Kc5 {[%clk 00:24:30]} {[%emt 00:04:51]} 44.
Nf1 {[%clk 00:25:49]} {[%emt 00:02:12]} Nd6 {[%clk 00:21:43]} {[%emt 00:03:17]}
45. Ne3 {[%clk 00:25:15]} {[%emt 00:01:04]} Nb5 {[%clk 00:15:33]} {[%emt
00:06:40]} 46. Nf1 {[%clk 00:19:12]} {[%emt 00:06:33]} Kc4 {[%clk 00:04:18]}
{[%emt 00:11:44]} 47. Ke3 {[%clk 00:17:52]} {[%emt 00:01:49]} Ra3+ {[%clk
00:03:49]} {[%emt 00:00:59]} 48. Kf4 {[%clk 00:17:06]} {[%emt 00:01:16]} f6
{[%clk 00:01:46]} {[%emt 00:02:35]} 49. e5 {[%clk 00:15:51]} {[%emt 00:01:45]}
Kxd5 {[%clk 00:01:28]} {[%emt 00:00:47]} 50. exf6 {[%clk 00:16:10]} {[%emt
00:00:10]} Ke6 {[%clk 00:01:53]} {[%emt 00:00:05]} 1/2-1/2